Cogmind - Beta 13 @@@ ROGUE MODE // 2024.06.26 @ 19:37:06 Player: celerysam Result: Destroyed by G-50 Soldier with Heavy Laser Performance ------------- Evolutions (2) 1000 Regions Visited (4) 800 Robots Destroyed (47) 235 Value Destroyed (1566) 1566 Prototype IDs (13) 260 Alien Tech Used (0) 0 Bonus (738) 738 TOTAL SCORE: 4599 Bonus ------- High Alert Combat Kills 139 Follower Combat Kills 599 Cogmind --------- Core Integrity 0/550 Matter 300/300 Energy 100/100 System Corruption 0% Temperature Cool (12) Movement Flying (35) Location -8/Storage Parts ------- > --- POWER (2) -------- (None) > --- PROPULSION (4) --- Improved VTOL Module > --- UTILITY (3) ------ Improved Heat Sink > --- WEAPON (2) ------- Heavy Flail > --- INVENTORY (5) ---- Light Nuclear Core Peak State ------------ > --- POWER ------------ Nuclear Core Light Nuclear Core > --- PROPULSION ------- Improved Flight Unit Cesium-ion Thruster Improved VTOL Module Improved VTOL Module > --- UTILITY ---------- Advanced Weight Redist. System Propulsion Shielding > --- WEAPON ----------- Guided EMP Blaster > --- INVENTORY -------- Nuclear Core Propulsion Shielding Minigun [Rating: 36] Favorites ----------- Power Nuclear Core Engine Ion Engine Power Core Nuclear Core Propulsion Improved Aluminum Leg Treads Advanced Treads Leg Improved Aluminum Leg Wheel Compact Wheel Hover Unit Airjet Flight Unit Improved VTOL Module Utility Small Storage Unit Device Improved Heat Sink Storage Small Storage Unit Protection Propulsion Shielding Weapon Beam Cannon Energy Gun Precision Beam Rifle Energy Cannon Beam Cannon Ballistic Gun Assault Rifle Launcher Mini Grenade Launcher Impact Weapon Heavy Hammer Build | -11 -10 -9 -8 -8 ------- Run | Yrd Mat Mat Mat Sto Slots Evolved 4 | . . 2 2 . Power 1 | . . . 1 . Propulsion 2 | . . 2 . . Utility 1 | . . . 1 . Weapon . | . . . . . Parts Attached 86 | 4 12 12 5 53 Power 14 | 1 1 2 1 9 Engine 6 | 1 1 1 1 2 Core 8 | . . 1 . 7 Reactor . | . . . . . Propulsion 27 | . 7 6 1 13 Treads 2 | . . . . 2 Leg 11 | . 7 2 . 2 Wheel 3 | . . 1 . 2 Hover 3 | . . . . 3 Flight 8 | . . 3 1 4 Utility 13 | 1 2 1 1 8 Device 8 | . 1 . 1 6 Storage 1 | 1 . . . . Processor . | . . . . . Hackware . | . . . . . Protection 4 | . 1 1 . 2 Artifact . | . . . . . Weapon 32 | 2 2 3 2 23 Energy Gun 11 | 2 . . 1 8 Energy Cannon 3 | . 1 . . 2 Ballistic Gun 10 | . 1 2 . 7 Ballistic Cannon . | . . . . . Launcher 3 | . . 1 . 2 Special Weapon . | . . . . . Impact Weapon 5 | . . . 1 4 Slashing Weapon . | . . . . . Piercing Weapon . | . . . . . Special Melee Weapon . | . . . . . Unidentified Prototypes 11 | . . . 1 10 Parts Lost 28 | . 1 1 3 23 Power 7 | . . 1 1 5 Propulsion 10 | . . . 1 9 Utility 7 | . . . 1 6 Weapon 4 | . 1 . . 3 Highest Loss Streak 13 | . 1 1 3 13 To Critical Strikes . | . . . . . Average Slot Usage (%) 92 | . 98 99 79 86 Engine 5 | . 14 8 2 . Core 8 | . . 2 7 15 Leg 18 | . 28 38 . 5 Wheel 1 | . . 1 6 1 Flight 12 | . . 3 29 21 Device 12 | . 10 11 12 14 Storage 5 | . 14 10 . . Protection 4 | . 2 . 9 8 Energy Gun 2 | . 2 . . 4 Energy Cannon 5 | . 11 10 . 1 Ballistic Gun 7 | . 14 11 1 2 Impact Weapon 3 | . . . 2 7 Naked Turns . | . . . . . Heaviest Build 25 | 13 16 19 17 25 Greatest Support 52 | 3 26 52 17 34 Greatest Overweight (x) 4 | 4 . 4 . 1 Average Overweight (x) . | 3 . . . . Largest Inventory Capacity 8 | 8 8 8 5 5 Average Capacity 6 | 7 8 7 5 5 Most Carried 8 | 8 8 8 5 5 Average Carried 5 | 4 7 7 4 4 Final Capacity 8 | 8 8 5 5 5 Final Carried 8 | 8 8 5 4 1 Class Distribution -------------------- 53% | Mutant 18% | Sprinter 16% | Commander-Mutant 12% | Scavenger-Mutant Dominant Class ---------------- Mutant | -10/Materials Mutant | -9/Materials Scavenger-Mutant | -8/Materials Commander-Mutant | -8/Storage Resources | -11 -10 -9 -8 -8 ----------- Run | Yrd Mat Mat Mat Sto Matter Collected 1219 | 175 190 205 . 649 Remotely 114 | . . . . 114 Salvage Created 1910 | . 249 536 . 1125 Parts 87 | . 15 25 . 47 Haulers Intercepted 2 | . . . . 2 Recyclers Shooed 2 | . . . . 2 Parts Field Recycled . | . . . . . Retrieved Matter . | . . . . . Parts Self-Destructed . | . . . . . Prevented . | . . . . . Kills | -11 -10 -9 -8 -8 ------- Run | Yrd Mat Mat Mat Sto Combat Hostiles Destroyed 37 | . 6 12 . 19 Melee 2 | . . . . 2 Guns 9 | . 1 4 . 4 Cannons 14 | . 5 8 . 1 AOE 7 | . . . . 7 Classes Destroyed 11 | . 1 5 . 5 Worker 3 | . . . . 3 Builder 1 | . . 1 . . Hauler 2 | . . . . 2 Recycler 1 | . . . . 1 Operator 2 | . . . . 2 Watcher 1 | . . 1 . . Swarmer 5 | . . 3 . 2 Grunt 22 | . 6 6 . 10 Brawler 2 | . . 1 . 1 Sentry 7 | . . 2 . 5 Demolisher 1 | . . . . 1 Best Kill Streak 6 | . 6 4 . 4 Combat Bots Only 6 | . 6 3 . 4 Max Kills in Single Turn 2 | . 1 2 . 2 Gunslinging . | . . . . . Exploded 2 | . . . . 2 Melee 1 | . . . . 1 Uniques/NPCs Destroyed . | . . . . . Combat | -11 -10 -9 -8 -8 -------- Run | Yrd Mat Mat Mat Sto Hostile Shots Fired 276 | . 21 82 13 160 Missed 104 | . 5 40 5 54 Damage Taken 3101 | . 219 615 118 2149 Core 680 | . 24 95 . 561 Absorbed by Shields . | . . . . . Redirected to Shielding 127 | . 5 . 12 110 Core Remaining (%) 88 | 100 90 76 . . Volleys Fired 120 | . 10 30 . 80 Largest 2 | . 2 2 . 2 Hottest 83 | . 80 83 . 68 Shots Fired 162 | . 20 60 . 82 Gun 99 | . 12 30 . 57 Cannon 56 | . 8 30 . 18 Launcher 7 | . . . . 7 Special . | . . . . . Kinetic 44 | . 10 30 . 4 Thermal 75 | . 8 30 . 37 Explosive 5 | . . . . 5 Electromagnetic 38 | . 2 . . 36 Robot Hit Streak 13 | . 7 13 . 8 Robot Miss Streak 4 | . 1 4 . 4 Penetration Max . | . . . . . Secondary Targets 1 | . 1 . . . Max Gunslinging Chain 1 | . 1 . . . Shots Hit Robots 107 | . 17 38 2 50 Core Hits 61 | . 10 19 . 32 Critical Kills 2 | . . 1 . 1 Critical Parts Destroyed 2 | . . . . 2 Critical Strikes 5 | . . 1 . 4 Burn 1 | . . . . 1 Meltdown 1 | . . 1 . . Smash 3 | . . . . 3 Melee Attacks 32 | . . . 5 27 Impact 32 | . . . 5 27 Slashing . | . . . . . Piercing . | . . . . . Sneak Attacks 7 | . . . . 7 Combat Hostiles 1 | . . . . 1 Follow-up Attacks . | . . . . . Damage Inflicted 3369 | . 268 646 94 2361 Guns 908 | . 126 262 . 520 Cannons 588 | . 142 384 . 62 Explosions 801 | . . . . 801 Melee 1071 | . . . 94 977 Ramming 1 | . . . . 1 Kinetic 410 | . 98 262 . 50 Thermal 1102 | . 142 384 . 576 Explosive 356 | . . . . 356 Electromagnetic 429 | . 28 . . 401 Impact 1071 | . . . 94 977 Slashing . | . . . . . Piercing . | . . . . . Highest Corruption . | . . . . . Average Corruption . | . . . . . Corruption Purged . | . . . . . Corruption Blocked . | . . . . . Overload Shots . | . . . . . Overflow Damage 393 | . . . 21 372 Projectiles . | . . . . . Explosions 27 | . . . . 27 Melee 366 | . . . 21 345 Knockbacks 2 | . . . . 2 Impact 2 | . . . . 2 Kinetic . | . . . . . Secondary . | . . . . . Self-Inflicted Damage 140 | . . 84 . 56 Shots 2 | . . 1 . 1 Rammed 1 | . . . . 1 Targets Rammed 1 | . . . . 1 Kicked . | . . . . . Crushed . | . . . . . Highest Temperature 446 | . 198 . 9 446 Average Temperature 166 | . 85 . 5 176 Received Heat Transfer 1110 | . 123 159 45 783 Effects 8 | . . . . 8 Shutdowns 4 | . . . . 4 Matter Decay 1 | . . . . 1 Short Circuit 1 | . . . . 1 Damage (minor) 1 | . . . . 1 Damage (major) 1 | . . . . 1 Siege Activations . | . . . . . Robots Corrupted 1 | . . . . 1 Combat Hostiles 1 | . . . . 1 Parts Fried 8 | . . . . 8 Impact Corruptions 15 | . . . 1 14 Robots Melted 2 | . . 1 . 1 Combat Hostiles 1 | . . . . 1 Parts Melted 5 | . . 4 . 1 Heat Transferred 2006 | . 296 814 . 896 Parts Sabotaged . | . . . . . Parts Stolen . | . . . . . Parts Stripped . | . . . . . Power Chain Reactions 3 | . . . . 3 Alert | -11 -10 -9 -8 -8 ------- Run | Yrd Mat Mat Mat Sto Peak Influence 901 | . 180 374 39 901 Initial 39 | . . . 39 10 Average 288 | . 122 181 35 493 Maximum Alert Level 3 | . . 1 . 3 Low Security (%) 47 | 100 100 37 100 14 Level 1 33 | . . 62 . 41 Level 2 2 | . . . . 5 Level 3 16 | . . . . 37 Level 4 . | . . . . . Level 5 . | . . . . . High Security . | . . . . . Max Security . | . . . . . Squads Dispatched 12 | . . . . 12 Investigation 2 | . . . . 2 Extermination . | . . . . . Reinforcement 2 | . . . . 2 Assault 4 | . . . . 4 Garrison 4 | . . . . 4 Intercept . | . . . . . Searches Triggered . | . . . . . Construction Impeded . | . . . . . Haulers Reinforced . | . . . . . Active Scanning Responses . | . . . . . Cargo Convoy Interrupts . | . . . . . Stealth | -11 -10 -9 -8 -8 --------- Run | Yrd Mat Mat Mat Sto Distress Signals 6 | . . 2 . 4 Communications Jammed . | . . . . . Distress Signals . | . . . . . Times Spotted 99 | . 9 20 5 65 Peak Tracking Total 14 | . 6 5 5 14 Tactical Retreats 9 | . 1 1 . 7 Traps | -11 -10 -9 -8 -8 ------- Run | Yrd Mat Mat Mat Sto Traps Triggered . | . . . . . Indirectly . | . . . . . Trap Hack Attempts . | . . . . . Triggered . | . . . . . Disarmed . | . . . . . Reprogrammed . | . . . . . Reused . | . . . . . Traps Extracted . | . . . . . Installed . | . . . . . Triggered . | . . . . . Machines | -11 -10 -9 -8 -8 ---------- Run | Yrd Mat Mat Mat Sto Machines Disabled 8 | . . 1 . 7 Max in Single Turn 1 | . . 1 . 1 Machines Repaired . | . . . . . Machines Dismantled . | . . . . . Machines Sabotaged . | . . . . . Overloaded Fab Kills . | . . . . . Hacking | -11 -10 -9 -8 -8 --------- Run | Yrd Mat Mat Mat Sto Machines Accessed 11 | . 2 2 . 7 Terminals 9 | . 2 2 . 5 Fabricators . | . . . . . Repair Stations . | . . . . . Recycling Units 2 | . . . . 2 Scanalyzers . | . . . . . Garrison Access . | . . . . . Total Hacks 18 | . 2 3 . 13 Successful 8 | . 1 2 . 5 Failed 10 | . 1 1 . 8 Catastrophic 2 | . . . . 2 Database Lockouts . | . . . . . Manual 2 | . . 1 . 1 Terminals 16 | . 2 3 . 11 Fabricators . | . . . . . Repair Stations . | . . . . . Recycling Units 2 | . . . . 2 Scanalyzers . | . . . . . Garrison Access . | . . . . . Terminal Hacks 6 | . 1 2 . 3 Prototype ID Bank 1 | . 1 . . . Open Door 3 | . . . . 3 Alert Level 1 | . . 1 . . Unreport Threat 1 | . . 1 . . Fabricator Hacks . | . . . . . Repair Station Hacks . | . . . . . Recycling Unit Hacks 2 | . . . . 2 Report Inventory 2 | . . . . 2 Scanalyzer . | . . . . . Garrison Access Hacks . | . . . . . Unauthorized Hacks . | . . . . . Terminals . | . . . . . Fabricators . | . . . . . Repair Stations . | . . . . . Recycling Units . | . . . . . Scanalyzers . | . . . . . Garrison Access . | . . . . . Data Cores Recovered 1 | . . . . 1 Used . | . . . . . Hacking Detections 5 | . . 1 . 4 Full Trace Events 2 | . . . . 2 Feedback Events . | . . . . . Feedback Blocked . | . . . . . Robot Schematics Acquired . | . . . . . Robots Built . | . . . . . Authchips . | . . . . . Time . | . . . . . Total Robot Build Rating . | . . . . . Part Schematics Acquired . | . . . . . Parts Built . | . . . . . Authchips . | . . . . . Time . | . . . . . Total Part Build Rating . | . . . . . Parts Repaired . | . . . . . Time . | . . . . . Parts Recycled . | . . . . . Recycled Matter . | . . . . . Retrieved Matter . | . . . . . Retrieved Components . | . . . . . Parts Scanalyzed . | . . . . . Part Schematics Acquired . | . . . . . Parts Damaged . | . . . . . Bothacking | -11 -10 -9 -8 -8 ------------ Run | Yrd Mat Mat Mat Sto Used RIF Installer . | . . . . . Robots Hacked . | . . . . . Non-combat . | . . . . . Combat . | . . . . . Robot Hacks Applied . | . . . . . Relay Couplers Released . | . . . . . Fabnet Peak Effective % . | . . . . . Robots Rewired . | . . . . . Allies Hacked . | . . . . . Hacks Repelled . | . . . . . Allies | -11 -10 -9 -8 -8 -------- Run | Yrd Mat Mat Mat Sto Total Allies 12 | . . . . 12 Largest Group 10 | . . . . 10 Highest-Rated Group 173 | . . . . 173 Highest-Rated Ally 31 | . . . . 31 Total Orders . | . . . . . Ally Attacks 158 | . . . . 158 Total Damage 2050 | . . . . 2050 Kills 19 | . . . . 19 Allies Corrupted . | . . . . . Allies Melted . | . . . . . Intel | -11 -10 -9 -8 -8 ------- Run | Yrd Mat Mat Mat Sto Robot Analysis Total . | . . . . . Derelict Logs Recovered . | . . . . . Drone Launches 2 | . . . . 2 Drone Recoveries . | . . . . . Exploration | -11 -10 -9 -8 -8 ------------- Run | Yrd Mat Mat Mat Sto Turns Passed 2031 | 145 409 503 80 894 Spaces Moved 1648 | 59 291 357 154 787 Core 66 | 59 . . . 7 Treads . | . . . . . Legs 762 | . 291 266 . 205 Wheels 38 | . . 22 . 16 Hover 59 | . . . . 59 Flight 723 | . . 69 154 500 Fastest Speed 27 | 50 120 39 29 27 Average Speed 87 | 222 120 104 37 67 Slowest Speed 380 | 250 120 380 39 120 Overloaded Moves . | . . . . . Propulsion Burnouts . | . . . . . Robots Hopped . | . . . . . Cave-ins Triggered . | . . . . . Exploration Rate (%) 35 | 5 45 39 17 73 Regions Visited 4 Branch Regions 1 Pre-discovered Areas 1 | . . . . 1 Known Exits Taken . | . . . . . Unknown Exits Taken 4 | 1 1 1 1 . Scrap Searched . | . . . . . Spaces Dug 3 | . . . 2 1 Terrain Destroyed 71 | . . 37 2 32 Melee 3 | . . . 2 1 Projectile . | . . . . . AOE 68 | . . 37 . 31 Terrain Rammed . | . . . . . Walls Destroyed . | . . . . . Machines Disabled . | . . . . . Actions | -11 -10 -9 -8 -8 --------- Run | Yrd Mat Mat Mat Sto Total 2031 | 74 337 429 169 1022 Wait 34 | . . 12 . 22 Move 1644 | 58 290 356 153 787 Hop . | . . . . . Pick Up 52 | 12 11 9 1 19 Fast Attach 26 | . 1 1 2 22 Attach 34 | 4 4 5 3 18 Detach 6 | . . . 2 4 Swap 26 | . 7 6 . 13 Drop 56 | . 14 10 3 29 Fire 120 | . 10 30 . 80 Melee 32 | . . . 5 27 Ram 1 | . . . . 1 Kick . | . . . . . Crush . | . . . . . Escape Stasis . | . . . . . Rewire . | . . . . . Trap . | . . . . . Miscellaneous . | . . . . . Route ------- -11/Scrapyard -10/Materials -9/Materials -8/Materials -8/Storage History --------- Turn | Location | Event 63 | -11/Scrapyard | Discovered new exit (range 15) 146 | -11/Scrapyard | Entered Materials 548 | -10/Materials | Discovered new exit (range 5) 555 | -10/Materials | Entered another Materials area 555 | -9/Materials | Evolved 2 slots: Propulsion x2 691 | -9/Materials | Build established: Mutant 1056 | -9/Materials | Discovered new exit (range 4) 1058 | -9/Materials | Entered another Materials area 1058 | -8/Materials | Evolved 2 slots: Power x1, Utility x1 1129 | -8/Materials | Discovered new exit (range 5) 1138 | -8/Materials | Entered Storage 1181 | -8/Storage | Lost 4 parts (1p2n1u) 1542 | -8/Storage | Met a pair of Derelict thieves 1630 | -8/Storage | Lost 3 parts (2n1u) 1642 | -8/Storage | Assisted by bots powering up and referring to "LRC-V3" 1687 | -8/Storage | Lost 3 parts (3n) 1760 | -8/Storage | Learned location of Armory (-3) 1938 | -8/Storage | Build established: Commander-Mutant 1938 | -8/Storage | First assault squad dispatched 1950 | -8/Storage | Garrison activated, responded to threat 1962 | -8/Storage | Core integrity fell below 50% 1993 | -8/Storage | Core integrity fell below 20% 2015 | -8/Storage | Lost 8 allies 2032 | -8/Storage | Destroyed by G-50 Soldier with Heavy Laser Last Messages --------------- 01986_ Aerolev Unit destroyed. 01986_ Terminal disabled. 01986_ Chain reaction triggered in Corrupted Lgt. Nuclear Core. 01986_ Destroyed Shock Absorption System. 01986_ G-47 Trooper destroyed. 01986_ D-53 Grenadier destroyed. 01987_ Acquired 15 matter. 01988_ Gui. EMP Blaster destroyed. 01988_ Lgt. Nuclear Core destroyed. 01989_ Lrn. Tractor Beam destroyed. 01990_ Critical hit (Burn: +37). 01992_ The unstable cave ceiling collapses. 01993_ M-28 Smith repairs G-50 Soldier. 02006_ Adv. Weight Redist. System destroyed. 02007_ Component Storage disabled. 02018_ Lgt. Deuterium Engine destroyed. 02022_ Acquired 20 matter. 02023_ K-01 Serf collects debris. 02031_ Acquired Lgt. Nuclear Core. 02031_ K-01 Serf collects debris. Map ----- +----------------------------------------------------+ | ????????????????# # ######????????????????????? | | ??????????????"####+##"#???????????????????????? | | ??????????????" % ##???????????????????????? | | ??????????????" ##???????????????????????? | | ??????????????"# ### ##???????????????????????? | | ???????????????### # ###########??????????????? | | ???????????######### + #??????????????? | | ???????????#== # # # """" #??????????????? | | ???????????#== # # "[ "" #??????????????? | | ???????????# * + # " """ #??????????????? | | ???????????# = # # """ " #??????????????? | | ???????????#=== #T## # "" " #??????????????? | | ???????????#=== #### # "" " #??????????? ?? | | ???????????######??# # ###?????? ?? | | ???????????????????# ####+############ ? | | ???????????????????# #??# ? | | ???????????????????# #??# #####??????? | | ???????????????????#g #??# ! #??????????? | | ????################ #### !! #??????????? | | ???## d %" #??????????? | | ??#### # g #??????????? | | ### [[! m #??????????? | | # # ####### o########+## #??????????? | | # # # # #??# # ####???????? | | "" # #* =#??# + #???????? | | #"G # #%=@#??# # #???????? | | # "" # [ # #??# # ######### | | ** # + #??# + | | # * # # #??# ####+######### | | # %!# #%% #??########??# T#?# | | # % " # k #????????????# ##??# | | ### # # % #????????????# #???# "" | | # # # # #????????????###???# "" | | ## """# # !]!#% #??????????????????# "" | | ?### #####[# ! # #??????????????????# | | ???# #??##/# # r #??????????????######+## | | ???# #??#=%% % #??????????????# ## ## | | ???# #??# % % #??????????????# + | | ???# #??# "" #??????????????# # | | ???# #??# "]"""" # #??????????????# # | | ???# #??# "!?"! + +%?????????????# T## | | ???# #??# "=?" " #% # "???????????###### | | ???# #??# """" " # # ""?????????####### | | ???# #??# """ # #? ?????#### +%!" | | ???# #??# ?? # ############ ## """ #[%" | | ???# ####### ##### # # """ # " | | ???# # # # """ """ """ # """ " | | ???# # """" / """ """ """ # """ # | | ???# """ # """ """ """ # """ # | | ???# """ + # + % | +----------------------------------------------------+ Best States ------------- Heat Dissipation 45 Energy Generation 23 Energy Capacity 380 Matter Stores 300 Matter Capacity 300 Sight Range 16 Terrain Scan Density 10 ECM Strength 1 Additional Mass Support 9 Core Shielding 20 Propulsion Shielding 33 Evasion (%) 64 Item Schematics ----------------- None Robot Schematics ------------------ None Fabricated ------------ Nothing Alien Tech Used ----------------- None Achievements -------------- None Challenges ------------ None Game ------ Seed AlphaMobileExpander Manual? 0 Play Time 00:38:11 Cumulative 65.9 hours Start 2024.06.26 @ 19:00:44 End 2024.06.26 @ 19:37:06 Sessions 1 Manual Loads 0 Difficulty Rogue Special Mode None Game No. 97 Rogue 97 Adventurer 0 Explorer 0 Win Type - Total 0 Types 0/0/0/0/0/0/0/0/0 Lore% 34 Gallery% 48 Achievement% 32 Wizard Run 0 Options --------- Layout 0 ASCII 0 Keyboard 0 Movement Mouse Keybinds 0 Fullscreen 1 Font 24/Smallcaps Map View 76x50 Zoom Use 0% Tactical HUD 1 Map Filters NONE Filters NONE Steam 1 RUN: 1da5f1e0-c929-456d-93f7-5ae5f732b22d